[Event "7th Summer Cup 2024"]
[Site "Rhodes"]
[Date "2024.06.22"]
[Round "1.1"]
[White "Girard, Adrien"]
[Black "Nasuta, Grzegorz"]
[Result "0-1"]
[ECO "B22"]
[WhiteElo "1828"]
[BlackElo "2541"]
[Annotator "TA"]
[PlyCount "50"]
[EventDate "2024.06.22"]
[EventType "swiss"]
[EventCountry "GRE"]
[SourceTitle "playchess.com"]
[Source "ChessBase"]
[SourceQuality "1"]
[TimeControl "15/5400+30:1800+30"]

{[%evp 9,50,-110,-111,-139,-147,-147,-145,-137,-102,-128,-131,-128,-136,-143,-141,-158,-140,-262,-206,-382,-387,-377,-360,-423,-428,-381,-353,-669,-666,-841,-843,-844,-834,-924,-918,-952,-897,-913,-839,-850,-817,-1006,-991]} 1. e4 {[%emt 0:00:03]} c5 {[%emt 0:00:05]} 2. c3 {[%emt 0:00:07]} d6 {[%emt 0:02:23]} 3. d4 {[%emt 0:00:39]} Nf6 {[%emt 0:00:06]} 4. e5 {[%emt 0:01:19]} dxe5 {[%emt 0:00:31]} 5. Bb5+ {[%emt 0:04:59]} Bd7 {[%emt 0:01:37]} 6. dxe5 {[%emt 0:04:25]} Bxb5 {[%emt 0:00:07]} 7. Qxd8+ {[%emt 0:00:09]} Kxd8 {[%emt 0:00:05]} 8. exf6 {[%emt 0:00:08] Black is clearly better.} exf6 {[%emt 0:01:49]} 9. Bf4 {[%emt 0:01:45]} g5 {[%emt 0:02:23]} 10. Be3 {[%emt 0:00:59]} Nd7 {[%emt 0:00:28][%cal Bb8d7,Bd7e5,Be5d3][%mdl 32]} 11. Nd2 {[%emt 0:01:17]} Kc7 {[%emt 0:01:37]} 12. O-O-O {[%emt 0:03:10]} h6 {[%emt 0:00:59]} 13. f3 {[%emt 0:04:40]} (13. h4 $17 {was necessary.}) 13... f5 {[%emt 0:00:24] aiming for ...Re8.} 14. h3 $2 {[%emt 0:04:06]} (14. c4 {was worth a try.} Bc6 15. h4) 14... Re8 $19 {[%emt 0:03:17]} 15. Bf2 {[%emt 0:01:26] White is weak on the light squares} Ne5 {[%emt 0:00:15] [#] Hoping for ...Nd3+.} 16. Nb3 {[%emt 0:34:40]} b6 {[%emt 0:34:14] White must now prevent ...Nd3+.} ({Resist} 16... Nd3+ 17. Rxd3 Bxd3 18. Nxc5 $19) 17. Kc2 {[%emt 0:01:44]} Ba4 {[%emt 0:00:08]} 18. Kc1 $2 {[%emt 0:03:48]} (18. h4) 18... c4 {[%emt 0:00:22] Black is clearly winning.} 19. Nd4 {[%emt 0:00:18]} Bxd1 {[%emt 0:00:26]} 20. Kxd1 {[%emt 0:00:16]} Nd3 {[%emt 0:00:05][%csl LRb2,LRf2]} 21. Nb5+ {[%emt 0:02:22]} Kc6 {[%emt 0:00:07]} 22. Nxa7+ {[%emt 0:00:38]} Kb7 {[%emt 0:00:05]} 23. Bd4 {[%emt 0:00:21]} Kxa7 {[%emt 0:00:18]} 24. Bxh8 {[%emt 0:01:10]} Nf2+ {[%emt 0:00:07]} 25. Kc2 {[%emt 0:00:09]} Nxh1 {[%emt 0:00:13] Weighted Error Value: White=0.62/Black=0.12 (very precise) .  Mistake:       	White=3     	---        OK:         	White=4     	Black=8} 0-1

[Event "7th Summer Cup 2024"]
[Site "Rhodes"]
[Date "2024.06.22"]
[Round "1.2"]
[White "Budisavljevic, Luka"]
[Black "Belli, Francesco"]
[Result "1-0"]
[ECO "E60"]
[WhiteElo "2468"]
[BlackElo "1816"]
[Annotator "TA"]
[PlyCount "43"]
[EventDate "2024.06.22"]
[EventType "swiss"]
[EventCountry "GRE"]
[SourceTitle "playchess.com"]
[Source "ChessBase"]
[SourceQuality "1"]
[TimeControl "15/5400+30:1800+30"]

{[%evp 9,43,41,59,52,53,39,49,70,79,79,149,144,166,156,268,132,126,150,368,362,358,256,255,254,320,243,279,206,610,522,527,521,641,629,618,554]} 1. d4 {[%emt 0:00:08]} Nf6 {[%emt 0:00:20]} 2. c4 {[%emt 0:00:07]} g6 {[%emt 0:00:03]} 3. h4 {[%emt 0:01:08]} c5 {[%emt 0:03:12]} 4. d5 {[%emt 0:00:06]} b5 {[%emt 0:02:52]} 5. cxb5 {[%emt 0:00:39]} Qa5+ {[%emt 0:03:35]} 6. Nc3 {[%emt 0:01:33]} Ne4 $1 {[%emt 0:00:28]} 7. Qa4 {[%emt 0:02:04]} Qxa4 {[%emt 0:01:58]} 8. Nxa4 {[%emt 0:00:02] White is slightly better.} Bb7 {[%emt 0:06:36]} 9. Bf4 {[%emt 0:00:28]} Bxd5 {[%emt 0:02:02]} ({Black should try} 9... Nf6) 10. f3 $16 {[%emt 0:00:11]} Nd6 {[%emt 0:00:42]} 11. e4 {[%emt 0:03:09]} (11. Nxc5 $6 Nxb5 12. e3 Nd6 $14) 11... Bc4 {[%emt 0:01:16]} (11... Be6 $16 {is a better defense.}) 12. Bxc4 {[%emt 0:02:10]} (12. Nxc5 Bxf1 13. Kxf1 Nxb5 $14) (12. Bxd6 $18 {has better winning chances.} Bxf1 13. Bxb8 (13. Bxc5 Bxb5 14. Nc3 Bc4 $11) 13... Bxb5 14. Be5 (14. Nxc5 Rxb8 15. a4 Bc6 $19)) 12... Nxc4 {[%emt 0:00:06]} 13. Rc1 $1 $36 {[%emt 0:00:09][%cal Ba1c1,Bc1c5,Bc5c8][%mdl 2080] White is really pushing. White is more active.} Nd6 {[%emt 0:06:11] [#] This costs Black the game.} (13... d5 $16 {was worth a try.} 14. b3 (14. Nxc5 Bg7 $16) (14. exd5 Nb6 $16) 14... Nd6 15. exd5 (15. Rxc5 dxe4 16. Bxd6 exd6 $18) 15... Bg7) 14. Rxc5 $18 {[%emt 0:01:11]} ({Not} 14. Nxc5 Nxb5 15. Ne2 d6 $16) 14... f6 {[%emt 0:02:56]} 15. Nc3 {[%emt 0:13:10][%cal Ba4c3,Bc3d5,Bd5f6][%mdl 32]} e5 {[%emt 0:02:17]} 16. Be3 {[%emt 0:30:02]} Kf7 {[%emt 0:30:44]} 17. Nd5 {[%emt 0:01:58]} Ne8 {[%emt 0:03:00] Dodges Nc7} 18. Rc8 {[%emt 0:00:24]} Bd6 $2 {[%emt 0:01:30] [#]} (18... Nd6) 19. Ne2 {[%emt 0:01:24] White is clearly winning.} Rg8 {[%emt 0:01:49]} 20. Kf2 {[%emt 0:00:06]} Ng7 {[%emt 0:00:36]} 21. Rxg8 {[%emt 0:00:14]} Kxg8 {[%emt 0:00:08]} 22. Nxf6+ {[%emt 0:00:44] Weighted Error Value: White=0.35/Black=0.74.  Loses game:     	---       	Black=1      Mistake:       	White=1     	Black=3      OK:         	White=5     	Black=5      Best:        	White=1     	---        Strong:       	White=1     	Black=1} 1-0

[Event "7th Summer Cup 2024"]
[Site "Rhodes"]
[Date "2024.06.22"]
[Round "1.3"]
[White "Ghaith, Saeed Alnuaimi"]
[Black "Sibashvili, Giorgi"]
[Result "0-1"]
[ECO "A73"]
[WhiteElo "1799"]
[BlackElo "2423"]
[Annotator "RC"]
[PlyCount "56"]
[EventDate "2024.06.22"]
[EventType "swiss"]
[EventCountry "GRE"]
[SourceTitle "playchess.com"]
[Source "ChessBase"]
[SourceQuality "1"]
[TimeControl "15/5400+30:1800+30"]

1. d4 {[%emt 0:01:41]} Nf6 {[%emt 0:01:18]} 2. c4 {[%emt 0:00:30]} c5 {[%emt 0:00:23]} 3. d5 {[%emt 0:00:46]} g6 {[%emt 0:00:22]} 4. Nc3 {[%emt 0:00:07]} Bg7 {[%emt 0:00:12]} 5. e4 {[%emt 0:03:43]} O-O {[%emt 0:00:35]} 6. Nf3 {[%emt 0:00:53]} d6 {[%emt 0:00:50]} 7. Be2 {[%emt 0:01:02]} e6 {[%emt 0:00:45]} 8. O-O {[%emt 0:00:51]} exd5 {[%emt 0:00:06]} 9. cxd5 {[%emt 0:02:00]} Bg4 {[%emt 0:01:34]} 10. Nd2 {[%emt 0:00:14]} Bxe2 {[%emt 0:01:10]} 11. Qxe2 {[%emt 0:00:07]} Nbd7 {[%emt 0:02:12]} 12. a4 {[%emt 0:08:45]} Re8 {[%emt 0:06:26]} 13. f3 {[%emt 0:03:31]} Nh5 {[%emt 0:04:12]} 14. Nc4 {[%emt 0:27:26]} Ne5 {[%emt 0:08:18]} 15. g4 {[%emt 0:19:12]} Nxc4 {[%emt 0:01:32]} 16. Qxc4 {[%emt 0:30:06]} Nf6 {[%emt 0:30:39]} 17. Bf4 {[%emt 0:01:19]} a6 {[%emt 0:02:54]} 18. Ra2 {[%emt 0:07:25]} Nd7 {[%emt 0:07:01]} 19. a5 {[%emt 0:09:37]} Ne5 {[%emt 0:01:29]} 20. Bxe5 {[%emt 0:02:14]} Bxe5 {[%emt 0:00:13]} 21. b3 {[%emt 0:00:41]} Kh8 {[%emt 0:05:16]} 22. Ne2 {[%emt 0:04:40]} Qh4 {[%emt 0:02:01]} 23. Rf2 {[%emt 0:02:42]} f5 {[%emt 0:01:01]} 24. f4 {[%emt 0:01:36]} Bd4 {[%emt 0:04:55]} 25. Nxd4 {[%emt 0:00:48]} Rxe4 {[%emt 0:00:41]} 26. Qc3 {[%emt 0:01:00]} Qxg4+ {[%emt 0:01:33]} 27. Qg3 {[%emt 0:00:33]} Qd1+ {[%emt 0:02:02]} 28. Kg2 {[%emt 0:00:13]} Qxd4 {[%emt 0:00:20]} 0-1

[Event "7th Summer Cup 2024"]
[Site "Rhodes"]
[Date "2024.06.22"]
[Round "1.4"]
[White "Stefanova, Antoaneta"]
[Black "Perrakis, Polychronis"]
[Result "1-0"]
[ECO "D00"]
[WhiteElo "2417"]
[BlackElo "1754"]
[Annotator "RC"]
[PlyCount "119"]
[EventDate "2024.06.22"]
[EventType "swiss"]
[EventCountry "GRE"]
[SourceTitle "playchess.com"]
[Source "ChessBase"]
[SourceQuality "1"]
[TimeControl "15/5400+30:1800+30"]

1. d4 {[%emt 0:05:37]} d5 {[%emt 0:00:28]} 2. Bf4 {[%emt 0:00:16]} Nf6 {[%emt 0:00:34]} 3. e3 {[%emt 0:00:06]} c5 {[%emt 0:02:59]} 4. c3 {[%emt 0:01:05]} Nc6 {[%emt 0:00:28]} 5. Nd2 {[%emt 0:01:44]} Bf5 {[%emt 0:01:04]} 6. Qb3 {[%emt 0:01:35]} Qb6 {[%emt 0:01:09]} 7. dxc5 {[%emt 0:01:17]} Qxb3 {[%emt 0:00:26]} 8. Nxb3 {[%emt 0:00:46]} e5 {[%emt 0:00:11]} 9. Bg3 {[%emt 0:00:58]} Ne4 {[%emt 0:03:21]} 10. O-O-O {[%emt 0:04:06]} Be6 {[%emt 0:03:56]} 11. Bb5 {[%emt 0:05:17]} f6 {[%emt 0:01:44]} 12. f4 {[%emt 0:07:18]} exf4 {[%emt 0:01:48]} 13. exf4 {[%emt 0:00:07]} Kf7 {[%emt 0:05:58]} 14. Bd3 {[%emt 0:49:38]} Bxc5 {[%emt 0:05:39]} 15. Nxc5 {[%emt 0:02:01]} Nxc5 {[%emt 0:00:12]} 16. Bc2 {[%emt 0:30:18]} Rad8 {[%emt 0:31:33]} 17. Nf3 {[%emt 0:04:41]} g6 {[%emt 0:03:31]} 18. h3 {[%emt 0:03:05]} Ne4 {[%emt 0:01:06]} 19. Bh4 {[%emt 0:00:37]} Rd7 {[%emt 0:03:56]} 20. Rhe1 {[%emt 0:01:38]} Nd6 {[%emt 0:01:11]} 21. g4 {[%emt 0:01:21]} Re8 {[%emt 0:03:20]} 22. g5 {[%emt 0:01:46]} Bxh3 {[%emt 0:05:10]} 23. gxf6 {[%emt 0:00:55]} Rxe1 {[%emt 0:00:22]} 24. Ng5+ {[%emt 0:01:47]} Kf8 {[%emt 0:01:13]} 25. Bxe1 {[%emt 0:02:13]} Bg2 {[%emt 0:03:24]} 26. Rd2 {[%emt 0:00:14]} Bh1 {[%emt 0:00:39]} 27. Rh2 {[%emt 0:00:35]} Be4 {[%emt 0:00:11]} 28. Nxh7+ {[%emt 0:00:48]} Kf7 {[%emt 0:00:31]} 29. Bb3 {[%emt 0:01:19]} Ne8 {[%emt 0:01:51]} 30. Ng5+ {[%emt 0:01:36]} Kxf6 {[%emt 0:00:52]} 31. Rh8 {[%emt 0:00:07]} Nd6 {[%emt 0:00:37]} 32. Bh4 {[%emt 0:00:32]} Kf5 {[%emt 0:01:09]} 33. Rf8+ {[%emt 0:01:02]} Kg4 {[%emt 0:00:21]} 34. Be1 {[%emt 0:00:05]} Bf3 {[%emt 0:01:43]} 35. Nxf3 {[%emt 0:00:29]} Kxf3 {[%emt 0:00:14]} 36. Bxd5+ {[%emt 0:00:17]} Ke2 {[%emt 0:01:11]} 37. Bd2 {[%emt 0:00:21]} Nf5 {[%emt 0:00:27]} 38. Bc4+ {[%emt 0:00:43]} Kf3 {[%emt 0:00:37]} 39. Rf6 {[%emt 0:00:15]} Nce7 {[%emt 0:00:45]} 40. Re6 {[%emt 0:00:00]} a6 {[%emt 0:00:00]} 41. a4 {[%emt 0:00:00]} Rd6 {[%emt 0:00:00]} 42. Re1 {[%emt 0:00:00]} Nd5 {[%emt 0:00:00]} 43. Be2+ {[%emt 0:00:00]} Kf2 {[%emt 0:00:00]} 44. Bd3 {[%emt 0:00:00]} Ng3 {[%emt 0:00:00]} 45. Kc2 {[%emt 0:00:00]} Kf3 {[%emt 0:01:47]} 46. a5 {[%emt 0:01:20]} Nxf4 {[%emt 0:03:42]} 47. Bxf4 {[%emt 0:00:05]} Kxf4 {[%emt 0:00:11]} 48. Re7 {[%emt 0:00:04]} Nf5 {[%emt 0:07:45]} 49. Bxf5 {[%emt 0:00:54]} gxf5 {[%emt 0:00:24]} 50. Rxb7 {[%emt 0:00:04]} Kf3 {[%emt 0:00:31]} 51. Rb6 {[%emt 0:00:22]} Rd7 {[%emt 0:00:42]} 52. Rxa6 {[%emt 0:00:17]} f4 {[%emt 0:00:10]} 53. Rf6 {[%emt 0:00:37]} Ke3 {[%emt 0:00:11]} 54. Re6+ {[%emt 0:02:26]} Kf2 {[%emt 0:00:15]} 55. b4 {[%emt 0:00:25]} f3 {[%emt 0:00:05]} 56. b5 {[%emt 0:01:17]} Rf7 {[%emt 0:00:14]} 57. b6 {[%emt 0:00:49]} Kg2 {[%emt 0:00:05]} 58. Re1 {[%emt 0:01:05]} f2 {[%emt 0:01:02]} 59. Re2 {[%emt 0:00:35]} Kg3 {[%emt 0:00:04]} 60. Rxf2 {[%emt 0:00:03]} 1-0

[Event "7th Summer Cup 2024"]
[Site "Rhodes"]
[Date "2024.06.22"]
[Round "1.5"]
[White "Sioulis, Stergios"]
[Black "Kotronias, Vasilios"]
[Result "0-1"]
[ECO "E94"]
[WhiteElo "1743"]
[BlackElo "2415"]
[Annotator "RC"]
[PlyCount "98"]
[EventDate "2024.06.22"]
[EventType "swiss"]
[EventCountry "GRE"]
[SourceTitle "playchess.com"]
[Source "ChessBase"]
[SourceQuality "1"]
[TimeControl "15/5400+30:1800+30"]

1. d4 {[%emt 0:00:04]} Nf6 {[%emt 0:00:12]} 2. c4 {[%emt 0:00:30]} g6 {[%emt 0:00:08]} 3. Nc3 {[%emt 0:00:20]} Bg7 {[%emt 0:00:06]} 4. e4 {[%emt 0:00:23]} d6 {[%emt 0:00:03]} 5. Nf3 {[%emt 0:00:24]} O-O {[%emt 0:00:06]} 6. Be2 {[%emt 0:00:50]} e5 {[%emt 0:00:13]} 7. d5 {[%emt 0:00:30]} a5 {[%emt 0:00:06]} 8. O-O {[%emt 0:03:40]} Na6 {[%emt 0:00:05]} 9. a4 {[%emt 0:02:21]} Nc5 {[%emt 0:00:41]} 10. Bg5 {[%emt 0:05:03]} h6 {[%emt 0:00:07]} 11. Bxf6 {[%emt 0:00:09]} Bxf6 {[%emt 0:00:06]} 12. Nd2 {[%emt 0:01:49]} Bg5 {[%emt 0:00:40]} 13. Nb3 {[%emt 0:03:55]} Nxb3 {[%emt 0:00:05]} 14. Qxb3 {[%emt 0:00:04]} b6 {[%emt 0:00:04]} 15. Bd3 {[%emt 0:17:58]} f5 {[%emt 0:02:05]} 16. exf5 {[%emt 0:31:48]} gxf5 {[%emt 0:30:10]} 17. Qd1 {[%emt 0:03:47]} Rf7 {[%emt 0:01:43]} 18. Re1 {[%emt 0:11:04]} Rg7 {[%emt 0:00:23]} 19. Qh5 {[%emt 0:04:07]} Bd2 {[%emt 0:05:26]} 20. Re2 {[%emt 0:02:13]} Bxc3 {[%emt 0:11:20]} 21. bxc3 {[%emt 0:00:09]} Qf8 {[%emt 0:00:21]} 22. Kh1 {[%emt 0:04:27]} Rg5 {[%emt 0:01:26]} 23. Qh4 {[%emt 0:03:33]} f4 {[%emt 0:00:13]} 24. f3 {[%emt 0:02:57]} Bd7 {[%emt 0:00:03]} 25. Bc2 {[%emt 0:01:18]} Kg7 {[%emt 0:02:25]} 26. Rg1 {[%emt 0:02:06]} Qf6 {[%emt 0:01:55]} 27. g3 {[%emt 0:02:04]} Rg8 {[%emt 0:11:04]} 28. Reg2 {[%emt 0:02:35]} fxg3 {[%emt 0:03:03]} 29. Rxg3 {[%emt 0:00:42]} Kf7 {[%emt 0:04:34]} 30. Bd1 {[%emt 0:07:35]} Rxg3 {[%emt 0:01:43]} 31. Qxf6+ {[%emt 0:00:23]} Kxf6 {[%emt 0:00:05]} 32. hxg3 {[%emt 0:00:35]} Bf5 {[%emt 0:01:13]} 33. Be2 {[%emt 0:02:10]} Bc2 {[%emt 0:01:40]} 34. c5 {[%emt 0:02:33]} dxc5 {[%emt 0:00:46]} 35. Bb5 {[%emt 0:00:09]} e4 {[%emt 0:01:19]} 36. Kg2 {[%emt 0:01:31]} Ke5 {[%emt 0:00:39]} 37. Re1 {[%emt 0:00:21]} Kxd5 {[%emt 0:00:13]} 38. fxe4+ {[%emt 0:02:14]} Bxe4+ {[%emt 0:00:07]} 39. Kh3 {[%emt 0:01:33]} Bf5+ {[%emt 0:00:30]} 40. Kg2 {[%emt 0:00:00]} c4 {[%emt 0:00:00]} 41. Re7 {[%emt 0:00:00]} c6 {[%emt 0:00:00]} 42. Ba6 {[%emt 0:00:00]} Ra8 {[%emt 0:00:00]} 43. Bb7 {[%emt 0:00:00]} Rf8 {[%emt 0:00:00]} 44. Rc7 {[%emt 0:00:00]} Rf6 {[%emt 0:00:00]} 45. Re7 {[%emt 0:00:00]} Kd6 {[%emt 0:00:00]} 46. Rg7 {[%emt 0:00:00]} Be6 {[%emt 0:00:00]} 47. g4 {[%emt 0:00:00]} Rf7 {[%emt 0:00:00]} 48. Rxf7 {[%emt 0:00:00]} Bxf7 {[%emt 0:00:00]} 49. Bc8 {[%emt 0:00:00]} b5 {[%emt 0:00:00]} 0-1

[Event "7th Summer Cup 2024"]
[Site "Rhodes"]
[Date "2024.06.22"]
[Round "1.6"]
[White "Papasimakopoulos, Alexandros"]
[Black "Michelakis, Evaggelos"]
[Result "1-0"]
[ECO "A80"]
[WhiteElo "2375"]
[BlackElo "1734"]
[Annotator "RC"]
[PlyCount "31"]
[EventDate "2024.06.22"]
[EventType "swiss"]
[EventCountry "GRE"]
[SourceTitle "playchess.com"]
[Source "ChessBase"]
[SourceQuality "1"]
[TimeControl "15/5400+30:1800+30"]

1. d4 {[%emt 0:08:01]} f5 {[%emt 0:00:21]} 2. Nc3 {[%emt 0:00:11]} e6 {[%emt 0:00:34]} 3. e4 {[%emt 0:00:54]} Bb4 {[%emt 0:01:54]} 4. exf5 {[%emt 0:00:44]} Bxc3+ {[%emt 0:01:05]} 5. bxc3 {[%emt 0:00:05]} exf5 {[%emt 0:00:24]} 6. Nf3 {[%emt 0:01:49]} Nf6 {[%emt 0:00:32]} 7. Ba3 {[%emt 0:00:32]} d6 {[%emt 0:02:42]} 8. Bc4 {[%emt 0:00:08]} Qe7+ {[%emt 0:03:32]} 9. Kf1 {[%emt 0:04:46]} Nc6 {[%emt 0:04:26]} 10. Qd3 {[%emt 0:03:23]} Na5 {[%emt 0:07:11]} 11. Re1 {[%emt 0:01:27]} Ne4 {[%emt 0:00:25]} 12. Bd5 {[%emt 0:01:21]} Be6 {[%emt 0:07:44]} 13. Bxe6 {[%emt 0:00:54]} Qxe6 {[%emt 0:00:35]} 14. Qb5+ {[%emt 0:00:15]} Nc6 {[%emt 0:05:50]} 15. d5 {[%emt 0:00:41]} a6 {[%emt 0:02:34]} 16. Qxb7 {[%emt 0:31:17]} 1-0

[Event "7th Summer Cup 2024"]
[Site "Rhodes"]
[Date "2024.06.22"]
[Round "1.7"]
[White "Panaretos, Nikiforos"]
[Black "Ladopoulos, Dimitrios"]
[Result "0-1"]
[ECO "B90"]
[WhiteElo "1723"]
[BlackElo "2374"]
[Annotator "RC"]
[PlyCount "60"]
[EventDate "2024.06.22"]
[EventType "swiss"]
[EventCountry "GRE"]
[SourceTitle "playchess.com"]
[Source "ChessBase"]
[SourceQuality "1"]
[TimeControl "15/5400+30:1800+30"]

1. e4 {[%emt 0:00:30]} c5 {[%emt 0:05:42]} 2. Nf3 {[%emt 0:00:39]} e6 {[%emt 0:00:53]} 3. d4 {[%emt 0:01:43]} cxd4 {[%emt 0:00:23]} 4. Nxd4 {[%emt 0:00:15]} Nf6 {[%emt 0:02:46]} 5. Nc3 {[%emt 0:00:34]} d6 {[%emt 0:00:19]} 6. h3 {[%emt 0:01:29]} a6 {[%emt 0:03:50]} 7. a4 {[%emt 0:01:41]} Nc6 {[%emt 0:00:39]} 8. Nxc6 {[%emt 0:03:19]} bxc6 {[%emt 0:00:06]} 9. Bd3 {[%emt 0:01:24]} d5 {[%emt 0:03:53]} 10. exd5 {[%emt 0:02:49]} cxd5 {[%emt 0:02:57]} 11. O-O {[%emt 0:00:36]} Bd6 {[%emt 0:03:14]} 12. Bg5 {[%emt 0:03:09]} h6 {[%emt 0:00:14]} 13. Bh4 {[%emt 0:00:24]} O-O {[%emt 0:06:37]} 14. Kh1 {[%emt 0:02:34]} Bb7 {[%emt 0:01:53]} 15. f3 {[%emt 0:03:44]} Rc8 {[%emt 0:05:34]} 16. Re1 {[%emt 0:32:35]} Bc7 {[%emt 0:34:28]} 17. Ne2 {[%emt 0:04:20]} Re8 {[%emt 0:00:24]} 18. Qd2 {[%emt 0:04:15]} Qd6 {[%emt 0:08:27]} 19. Bg3 {[%emt 0:02:12]} e5 {[%emt 0:00:11]} 20. Nd4 {[%emt 0:04:01]} Nh5 {[%emt 0:03:18]} 21. Bh2 {[%emt 0:02:47]} Qf6 {[%emt 0:02:35]} 22. Nf5 {[%emt 0:05:11]} e4 {[%emt 0:01:53]} 23. fxe4 {[%emt 0:06:58]} Bxh2 {[%emt 0:03:54]} 24. Kxh2 {[%emt 0:05:51]} dxe4 {[%emt 0:00:18]} 25. Be2 {[%emt 0:11:26]} Qxf5 {[%emt 0:00:16]} 26. Rf1 {[%emt 0:02:20]} Qe5+ {[%emt 0:00:05]} 27. Kg1 {[%emt 0:00:20]} Ng3 {[%emt 0:00:09]} 28. Bg4 {[%emt 0:04:49]} Rcd8 {[%emt 0:01:44]} 29. Qf2 {[%emt 0:03:21]} Nxf1 {[%emt 0:00:11]} 30. Rxf1 {[%emt 0:00:12]} Qd4 {[%emt 0:00:05]} 0-1

[Event "7th Summer Cup 2024"]
[Site "Rhodes"]
[Date "2024.06.22"]
[Round "1.8"]
[White "Mostbauer, Florian"]
[Black "Avramopoulos, Periklis"]
[Result "1-0"]
[ECO "D02"]
[WhiteElo "2324"]
[BlackElo "1710"]
[Annotator "RC"]
[PlyCount "51"]
[EventDate "2024.06.22"]
[EventType "swiss"]
[EventCountry "GRE"]
[SourceTitle "playchess.com"]
[Source "ChessBase"]
[SourceQuality "1"]
[TimeControl "15/5400+30:1800+30"]

1. d4 {[%emt 1:31:00]} Nf6 {[%emt 0:29:19]} 2. Nf3 {[%emt 0:00:00]} e6 {[%emt 0:00:15]} 3. Bf4 {[%emt 0:00:00]} d5 {[%emt 0:00:31]} 4. e3 {[%emt 0:00:00]} Bd6 {[%emt 0:00:13]} 5. Bg3 {[%emt 0:00:00]} Nc6 {[%emt 0:00:42]} 6. Nbd2 {[%emt 0:00:00]} O-O {[%emt 1:02:30]} 7. c4 {[%emt 0:00:00]} Bb4 {[%emt 0:00:30]} 8. a3 {[%emt 0:00:00]} Bxd2+ {[%emt 0:00:00]} 9. Qxd2 {[%emt 0:00:00]} Qe7 {[%emt 0:00:00]} 10. Qc2 {[%emt 0:04:30]} Ne4 {[%emt 0:00:00]} 11. Bd3 {[%emt 0:00:00]} f5 {[%emt 0:00:00]} 12. Ne5 {[%emt 0:00:00]} Nxe5 {[%emt 0:00:00]} 13. Bxe5 {[%emt 0:01:30]} c5 {[%emt 0:03:00]} 14. f3 {[%emt 0:00:00]} Nf6 {[%emt 0:00:30]} 15. O-O {[%emt 0:00:00]} cxd4 {[%emt 0:00:00]} 16. exd4 {[%emt 0:31:30]} dxc4 {[%emt 0:31:00]} 17. Bxc4 {[%emt 0:00:00]} Bd7 {[%emt 0:00:30]} 18. Qxf5 {[%emt 0:00:00]} Rac8 {[%emt 0:00:00]} 19. Qd3 {[%emt 0:00:00]} Nd5 {[%emt 0:01:00]} 20. Rae1 {[%emt 0:00:00]} Qg5 {[%emt 0:00:30]} 21. Bxd5 {[%emt 0:00:00]} exd5 {[%emt 0:00:00]} 22. Qb3 {[%emt 0:00:00]} Bc6 {[%emt 0:00:00]} 23. Re3 {[%emt 0:00:00]} h5 {[%emt 0:00:00]} 24. f4 {[%emt 0:04:00]} Qh6 {[%emt 0:00:00]} 25. Rg3 {[%emt 0:00:30]} Rc7 {[%emt 0:00:00]} 26. Bxc7 {[%emt 0:00:00]} 1-0